bitfinex/quotes_ETHUSD_20251017
["timestamp","ask_amount","ask_price","bid_price","bid_amount"]
[1760717074101,0.4593,3844.4,3841.3,7.633602]
[1760717074400,2.60179112,3843.6,3841.3,2.106321]
[1760717074565,0.4593,3843.5,3841.2,0.216]
[1760717075077,0.4593,3843.5,3839.6,12.79506227]
[1760717075078,0.4593,3843.5,3840.5,0.217]
[1760717075282,0.6336,3843.4,3840.5,0.217]
[1760717075482,4.33038448,3842.7,3839.1,0.12704653]
[1760717075704,0.6336,3841.9,3839.1,0.12704653]
[1760717075874,0.6336,3841.7,3839.1,0.001]
[1760717076081,0.6865,3841.8,3839.1,0.001]
[1760717076082,2.02936623,3841.8,3839.1,0.001]
[1760717076260,0.4593,3841.6,3839.1,0.001]
[1760717076489,0.2272,3841.8,3839.6,2.60443796]
[1760717076691,0.2272,3841.8,3839.2,2.96718575]
[1760717076692,0.4593,3842.2,3840.8,2.6035607]
[1760717076897,0.4593,3843.1,3840.6,0.217]
[1760717077236,0.4593,3843.1,3841.1,5.795912]
[1760717077390,0.4593,3843.1,3841.5,2.60312413]
[1760717077608,0.4593,3843.1,3841.1,2.60342089]
[1760717077840,0.4593,3843.1,3840.6,0.217]
[1760717078122,0.2272,3843.2,3841.4,2.60317238]
[1760717078123,0.4593,3843.0,3841.4,2.60317238]
[1760717078297,0.4593,3843.0,3840.8,1.728]
[1760717078504,0.4593,3842.9,3840.9,0.4631484]
[1760717078901,0.2272,3841.0,3838.1,0.3625]
[1760717079105,0.2272,3841.0,3838.5,0.02605184]
[1760717079301,0.2272,3841.0,3837.6,12.79606227]
[1760717079302,0.4593,3840.9,3837.6,0.001]
[1760717079501,2.60369203,3840.7,3837.6,0.001]
[1760717079700,0.6336,3840.6,3837.6,0.001]
[1760717079900,0.2272,3839.2,3837.6,0.001]
[1760717080204,3.04095822,3840.5,3837.6,0.001]
[1760717080525,0.2272,3839.6,3837.6,0.001]
[1760717081025,0.4593,3839.5,3837.6,0.001]
[1760717081230,0.6865,3840.5,3837.7,3.4815]
[1760717081401,0.2272,3841.0,3838.6,0.6336]
[1760717081602,0.2272,3841.0,3838.9,1.728]
[1760717081792,0.4593,3840.9,3839.2,1.728]
[1760717081999,0.4593,3840.9,3839.3,0.02604641]
[1760717082324,0.4593,3840.9,3839.0,0.4849]
[1760717082524,0.4593,3840.9,3838.2,1.728]
[1760717082724,0.4593,3840.8,3837.8,7.994896]
[1760717082925,0.4593,3840.8,3838.0,2.60552371]
[1760717083225,0.4593,3840.7,3838.0,4.649746]
[1760717083424,0.4593,3840.6,3838.1,2.60545582]
[1760717083632,0.4593,3840.6,3838.4,1.728]
[1760717083633,0.4084744,3840.5,3838.4,1.728]
[1760717083819,0.2272,3841.0,3839.8,2.60424451]
[1760717084022,0.2272,3841.0,3839.9,2.60422523]
[1760717084197,0.2272,3841.0,3838.9,0.1464]
[1760717084198,0.4593,3841.3,3839.2,3.834912]
[1760717084393,0.4593,3841.3,3839.3,1.728]
[1760717084594,0.4593,3841.3,3839.4,0.706087]
[1760717084796,0.40830249,3841.9,3839.6,1.728]
[1760717084999,0.4593,3842.2,3839.6,1.728]
[1760717085000,0.4593,3842.2,3840.1,2.60409885]
[1760717085195,0.4593,3842.2,3840.0,3.12]
[1760717085505,0.86756772,3842.2,3840.2,2.60403104]
[1760717085706,12.79506227,3842.6,3838.7,0.05]
[1760717085896,12.79506227,3842.6,3836.6,0.31699999]
[1760717085897,0.4593,3842.1,3839.0,9.801284]
[1760717086094,0.4593,3842.1,3839.4,12.085599]
[1760717086301,0.4593,3842.1,3839.4,2.3616]
[1760717086504,0.4593,3842.1,3839.7,7.085688]
[1760717086698,0.63549942,3842.3,3840.1,10.92215]
[1760717086932,0.63549942,3842.3,3839.8,0.38954302]
[1760717086933,0.2272,3842.3,3839.8,0.3635]
[1760717087238,0.1296,3841.6,3841.0,0.1296]
[1760717087534,0.4593,3841.6,3839.7,2.6043599]
[1760717087733,0.4593,3841.6,3840.2,2.60400129]
[1760717087897,0.4593,3842.2,3839.8,0.26043599]
[1760717088098,0.4593,3842.2,3840.2,2.60401803]
[1760717088312,0.4593,3842.2,3839.8,0.26043599]
[1760717088313,0.40827927,3841.9,3839.8,0.26043599]
[1760717088640,0.4593,3842.1,3839.5,0.3635]
[1760717088937,0.40825289,3842.9,3839.8,1.728]
[1760717089233,0.40825289,3842.9,3840.7,1.728]
[1760717089434,2.60123497,3844.4,3840.9,1.728]
[1760717089637,0.4593,3843.1,3840.8,0.217]
[1760717089823,0.4593,3843.1,3840.9,2.60355645]
[1760717090024,0.4593,3843.1,3840.8,0.53542202]
[1760717090341,0.4593,3843.1,3840.3,2.60393576]
[1760717090342,2.60255284,3842.4,3840.3,2.60393576]
[1760717090525,0.4593,3842.3,3840.3,1.728]
[1760717090703,0.4593,3842.3,3840.1,0.217]
[1760717091114,0.4593,3842.3,3840.3,1.728]
[1760717091315,0.4593,3842.2,3840.4,0.02603895]
[1760717091530,0.4593,3842.2,3840.1,0.217]
[1760717091717,0.4593,3842.2,3839.7,2.0915]
[1760717091943,0.40825964,3842.5,3839.3,0.001]
[1760717091944,0.2272,3843.2,3839.8,0.80105]
[1760717092128,0.2272,3843.2,3840.0,1.728]
[1760717092328,1.08766329,3843.2,3840.5,0.6336]
[1760717092546,0.669,3844.0,3841.0,15.724326]
[1760717092837,0.669,3844.0,3842.5,2.60243183]
[1760717093037,0.669,3844.0,3842.6,0.26024318]
[1760717093563,0.003,3843.2,3842.9,2.60213533]
[1760717093771,0.003,3843.2,3842.6,2.60234394]
[1760717093970,0.003,3843.2,3843.0,2.60212419]
[1760717094272,0.003,3843.2,3842.3,2.314]
[1760717094435,0.003,3843.2,3842.2,2.96613032]
[1760717094639,0.003,3843.2,3843.0,2.60211262]
[1760717094950,0.003,3843.2,3842.4,2.60247363]
[1760717095203,0.003,3843.2,3842.3,0.31125303]
[1760717095455,0.003,3843.2,3842.4,0.0260254]
[1760717095616,0.003,3843.2,3842.5,0.3635]
[1760717095819,0.003,3843.2,3842.1,0.1464]
[1760717095820,0.003,3843.2,3842.3,1.728]
[1760717096049,0.003,3843.2,3842.1,0.1464]
[1760717096352,0.003,3843.2,3841.5,0.1467]
[1760717096553,0.003,3843.2,3842.1,2.60273359]
[1760717096850,0.003,3843.2,3841.6,0.44779755]
[1760717097050,0.003,3843.2,3841.5,2.74984664]
[1760717097255,0.003,3843.2,3841.0,2.60342747]
[1760717097453,0.1296,3843.0,3842.4,0.1296]
[1760717097658,0.669,3842.9,3840.6,2.60371423]
[1760717097952,0.669,3842.9,3840.7,0.3638]
[1760717098171,0.669,3842.9,3840.1,0.217]
[1760717098336,0.1296,3842.1,3841.5,0.1296]
[1760717098536,0.4522,3842.3,3840.1,0.217]
[1760717098859,2.60291377,3841.9,3839.6,0.217]
[1760717099057,0.1296,3841.4,3840.8,0.1296]
[1760717099438,0.4522,3841.3,3839.6,0.217]
[1760717099673,0.1296,3841.1,3840.5,0.1296]
[1760717099957,0.4522,3841.3,3839.3,2.60563809]
[1760717099958,3.05549438,3841.3,3839.3,2.60563809]
[1760717100174,0.4522,3841.3,3839.4,0.28226381]
[1760717100522,0.4522,3841.3,3839.4,0.02604573]
[1760717100755,0.4522,3841.3,3839.3,0.001]
[1760717100756,1.728,3841.0,3839.3,0.001]
[1760717100957,0.4522,3841.3,3839.3,0.001]
[1760717100958,0.2168,3839.4,3839.3,0.001]
[1760717101165,2.82137363,3839.4,3839.3,0.001]
[1760717101329,2.60484501,3839.0,3837.6,0.001]
[1760717101523,0.52095971,3839.0,3837.6,0.001]
[1760717101757,0.669,3839.4,3837.6,0.001]
[1760717101758,0.2283,3837.7,3837.6,0.001]
[1760717101931,0.2283,3837.7,3835.3,0.219]
[1760717102127,0.2283,3839.1,3835.3,0.219]
[1760717102128,0.4441,3837.9,3835.4,3.16887289]
[1760717102440,0.40875792,3838.3,3835.8,3.818713]
[1760717102773,0.40861124,3839.8,3836.7,24.738529]
[1760717103106,0.40861124,3839.8,3835.5,7.2189691]
[1760717103107,0.2168,3840.0,3836.8,0.3668]
[1760717103289,0.2168,3840.0,3836.8,3.12080716]
[1760717103290,0.2283,3839.7,3836.8,3.12080716]
[1760717103599,0.40852515,3839.5,3837.1,4.733843]
[1760717103895,0.4441,3841.2,3837.8,0.6336]
[1760717104096,0.4441,3841.2,3838.4,1.728]
[1760717104401,0.4441,3841.2,3837.9,3.4698]
[1760717104402,0.6724,3840.9,3837.7,0.3668]
[1760717104697,0.6724,3840.9,3838.1,2.60538951]
[1760717104900,0.6336,3840.7,3838.2,0.26053895]
[1760717105099,2.60416297,3840.1,3838.2,0.26053895]
[1760717105264,0.4441,3840.1,3837.7,0.3668]
[1760717105463,0.4441,3840.1,3836.8,0.5145]
[1760717105464,0.6336,3840.0,3836.8,0.5145]
[1760717105796,0.6724,3839.9,3837.7,2.60572054]
[1760717105997,3.27664068,3839.9,3837.4,8.95170709]
[1760717106197,2.60464388,3839.3,3837.3,0.3668]
[1760717106519,0.26046439,3839.3,3837.4,0.29729332]
[1760717106661,2.60490437,3839.0,3837.4,0.29729332]
[1760717106863,0.40857516,3839.5,3835.3,0.5858]
[1760717106864,2.60560411,3837.9,3835.3,0.5858]
[1760717107107,2.60615813,3837.1,3835.3,0.5858]
[1760717107285,2.60651859,3836.6,3834.7,0.219]
[1760717107486,2.60651859,3836.6,3834.1,0.219]
[1760717107487,0.6724,3836.5,3834.1,0.219]
[1760717107671,0.6724,3836.5,3834.2,0.02608105]
[1760717107672,1.00028781,3836.5,3834.2,0.02608105]
[1760717107860,0.40887687,3836.2,3834.3,0.3668]
[1760717108063,0.40887687,3836.2,3834.2,5.140826]
[1760717108275,0.6724,3836.5,3834.1,0.219]
[1760717108499,0.6724,3836.5,3834.2,0.3668]
[1760717108672,0.6724,3836.5,3834.3,1.728]
[1760717108870,0.40885198,3837.0,3834.4,0.23138]
[1760717109082,0.40885198,3837.0,3834.2,0.3668]
[1760717109083,0.4441,3836.9,3834.2,2.97487459]
[1760717109266,0.4441,3836.8,3834.2,0.3668]
[1760717109867,0.4441,3836.8,3834.3,7.710012]
[1760717110198,0.4441,3836.8,3834.1,0.219]
[1760717110199,0.4441,3836.7,3834.1,0.219]
[1760717110423,0.1296,3835.4,3834.7,0.1296]
[1760717110614,0.4441,3836.7,3834.3,3.468]
[1760717110615,0.40886882,3836.4,3834.3,3.468]
[1760717110781,0.40886882,3836.4,3834.1,0.219]
[1760717110782,0.40886882,3836.4,3834.4,0.65819231]
[1760717110978,1.728,3837.1,3834.4,3.246066]
[1760717111290,0.4441,3837.0,3834.2,0.3668]
[1760717111507,2.60661566,3836.4,3834.2,2.60804877]
[1760717111823,0.4441,3836.4,3834.1,0.219]
[1760717112001,0.4441,3836.4,3834.2,0.3668]
[1760717112185,0.4441,3836.4,3834.7,2.60776269]
[1760717112383,2.60674625,3836.2,3833.6,0.01]
[1760717112585,0.4441,3836.1,3833.7,30.0]
[1760717112787,0.48953674,3836.8,3834.0,1.728]
[1760717113122,0.4441,3836.8,3834.4,1.728]
[1760717113291,0.4441,3836.8,3834.3,1.728]
[1760717113491,0.4441,3836.8,3835.1,2.60748402]
[1760717113789,0.4441,3836.8,3835.4,2.60722434]
[1760717113990,0.4441,3836.8,3834.5,7.450351]
[1760717113991,0.4441,3836.7,3834.9,0.02607629]
[1760717114202,0.4441,3836.7,3834.5,0.3668]
[1760717114403,0.4441,3836.7,3834.2,0.219]
[1760717114581,0.6336,3836.6,3833.7,30.0]
[1760717114783,0.6336,3836.1,3833.8,2.63247953]
[1760717115016,0.6336,3835.2,3832.8,1.625]
[1760717115196,0.2283,3833.9,3832.8,1.625]
[1760717115402,0.4441,3833.8,3832.8,1.625]
[1760717115607,0.2283,3832.9,3832.8,1.625]
[1760717115910,0.6724,3832.9,3832.8,1.625]
[1760717116280,3.91499058,3832.9,3832.8,1.625]
[1760717116485,3.24293096,3832.4,3832.3,0.01770943]
[1760717116836,4.97093096,3832.4,3832.3,0.01770943]
[1760717117114,0.6375833,3832.9,3832.3,0.01770943]
[1760717117319,0.4092833,3832.9,3832.3,0.01770943]
[1760717117924,0.668,3834.0,3832.3,0.01770943]
[1760717118222,0.2283,3833.8,3832.3,0.01770943]
[1760717118683,0.4419,3834.3,3832.4,0.1477]
[1760717118882,0.4419,3834.3,3832.5,2.60926288]
[1760717119095,0.4419,3834.3,3832.4,0.1477]
[1760717119096,0.40918122,3834.4,3832.6,0.27746723]
[1760717119316,0.4419,3834.3,3832.4,0.1477]
[1760717119693,2.60810599,3834.2,3832.3,0.01770943]
[1760717120027,2.60839101,3833.8,3832.3,0.01770943]
[1760717120188,0.40913187,3833.8,3832.3,0.01770943]
[1760717120386,0.6702,3833.7,3832.3,0.01770943]
[1760717120609,2.60857933,3833.6,3832.3,0.01770943]
[1760717120811,0.36879112,3833.5,3832.3,0.01770943]
[1760717121119,0.6336,3833.3,3832.3,0.01770943]
[1760717121416,0.4419,3833.4,3832.3,0.01770943]
[1760717121618,2.60755048,3835.1,3832.3,0.01770943]
[1760717121619,0.40923525,3833.3,3832.3,0.01770943]
[1760717121787,0.2183,3833.8,3832.3,0.01770943]
[1760717122223,0.431,3834.1,3832.3,0.01770943]
[1760717122224,0.40914948,3834.0,3832.3,0.01770943]
[1760717122428,0.431,3834.9,3832.5,8.382217]
[1760717122728,2.82448958,3837.1,3832.3,0.01770943]
[1760717122729,0.04545998,3835.4,3832.6,1.35245197]
[1760717122910,0.04545998,3835.4,3832.7,0.4635]
[1760717122911,0.431,3835.3,3832.7,0.4635]
[1760717123314,0.431,3835.3,3832.8,6.50555]
[1760717123519,0.431,3835.3,3832.9,0.4635]
[1760717123692,0.2183,3835.5,3833.0,0.02608922]
[1760717123892,0.2183,3835.5,3833.1,0.2189]
[1760717123893,2.60751257,3835.1,3833.1,0.2189]
[1760717124088,3.29936738,3835.0,3832.6,2.60916213]
[1760717124393,0.2183,3834.9,3832.6,0.4635]
[1760717124623,1.0646,3834.8,3832.3,0.01770943]
[1760717124929,0.431,3834.8,3832.3,0.01770943]
[1760717125109,2.60794515,3834.5,3832.4,3.07282124]
[1760717125330,2.60794515,3834.5,3832.3,0.01770943]
[1760717125331,2.60808949,3834.3,3832.5,0.32382307]
[1760717125529,0.431,3834.4,3832.3,0.01770943]
[1760717125909,0.40909647,3834.5,3832.5,3.65]
[1760717126109,0.40909647,3834.5,3833.5,2.60857651]
[1760717126438,0.431,3835.8,3833.6,0.4635]
[1760717126606,0.431,3835.8,3833.7,0.4813622]
[1760717126607,0.6493,3835.8,3833.7,0.4813622]
[1760717126812,0.6493,3835.8,3833.4,0.6824]
[1760717127007,0.6493,3835.8,3833.5,9.420574]
[1760717127008,0.2183,3835.8,3833.5,9.420574]
[1760717127243,0.431,3835.7,3832.6,2.1915]
[1760717127551,0.431,3835.6,3833.0,0.2189]
[1760717127730,1.728,3835.2,3832.4,0.4635]
[1760717127911,2.60791236,3834.5,3832.5,2.60926112]
[1760717128110,0.2183,3834.9,3832.6,0.02609194]
[1760717128311,0.40904709,3835.0,3833.7,2.60841153]
[1760717128510,0.431,3835.7,3834.1,2.60811014]
[1760717128745,0.4089696,3835.7,3834.2,0.1614]
[1760717129117,0.4089696,3835.7,3834.3,0.02608037]
[1760717129321,0.2183,3837.1,3834.3,0.02608037]
[1760717129322,0.431,3837.0,3834.4,0.4635]
[1760717129548,0.40890207,3836.5,3834.9,2.60759771]
[1760717129724,0.40890207,3836.5,3834.5,0.32590183]
[1760717129923,0.431,3836.4,3834.4,0.4635]
[1760717130136,0.431,3836.4,3834.2,0.1614]
[1760717130649,0.431,3836.4,3834.3,2.60798317]
[1760717130848,0.1296,3836.3,3835.6,0.1296]
[1760717131052,0.6493,3837.1,3835.3,0.2189]
[1760717131346,0.6493,3837.1,3836.0,0.1296]
[1760717131347,0.1296,3836.7,3836.0,0.1296]
[1760717131858,0.1296,3836.0,3835.3,0.1296]
[1760717132012,0.2183,3835.9,3834.2,2.76949267]
[1760717132212,0.8519,3837.1,3834.2,2.76949267]
[1760717132213,0.1296,3835.6,3835.0,0.1296]
[1760717132414,0.1296,3836.0,3835.3,0.1296]
[1760717132952,0.1296,3836.3,3835.6,0.1296]
[1760717133249,0.1296,3836.2,3835.6,0.1296]
[1760717133411,0.431,3836.6,3835.0,0.1296]
[1760717133412,0.1296,3835.7,3835.0,0.1296]
[1760717133761,2.60663744,3836.4,3834.5,3.07137914]
[1760717134078,0.1296,3836.1,3835.4,0.1296]
[1760717134244,0.002,3836.1,3834.5,0.4635]
[1760717134413,2.60700545,3835.9,3834.2,0.1614]
[1760717134613,0.1296,3835.8,3835.1,0.1296]
[1760717134811,0.002,3836.1,3835.0,0.4635]
[1760717135016,0.002,3836.1,3835.4,2.60723337]
[1760717135248,0.002,3836.1,3835.5,0.52146549]
[1760717135460,0.002,3836.1,3835.3,0.4635]
[1760717135759,0.002,3836.1,3834.7,1.728]
[1760717135928,0.002,3836.1,3834.7,2.60776494]
[1760717136272,0.002,3836.1,3834.9,4.602725]
[1760717136548,0.002,3836.1,3834.5,0.4635]
[1760717136912,0.002,3836.1,3834.2,0.6249]
[1760717137258,0.431,3836.0,3834.2,0.6249]
[1760717137440,2.60710112,3835.7,3834.2,0.6249]
[1760717137769,0.002,3836.1,3834.2,0.6249]
[1760717137917,0.002,3836.1,3834.3,0.48958037]
[1760717138364,0.002,3836.1,3835.3,2.60733868]
[1760717138616,0.002,3836.1,3834.7,2.60776592]
[1760717138838,0.002,3836.1,3835.1,0.4635]
[1760717139012,0.002,3836.1,3835.4,2.60728439]
[1760717139228,0.002,3836.1,3835.1,0.4635]
[1760717139428,0.002,3836.1,3835.7,2.60702654]
[1760717139627,0.002,3836.1,3835.1,0.4635]
[1760717139850,0.002,3836.1,3835.2,0.02607425]
[1760717140018,0.002,3836.1,3835.1,3.07095366]
[1760717140411,0.002,3836.1,3835.9,2.60692691]
[1760717140578,0.002,3836.1,3835.2,1.03135775]
[1760717140720,0.002,3836.1,3834.8,2.1915]
[1760717140921,0.002,3836.1,3834.8,0.4635]
[1760717141559,0.002,3836.1,3834.1,1.728]
[1760717141560,0.002,3836.1,3834.4,2.60795883]
[1760717141725,0.002,3836.1,3834.7,2.60771943]
[1760717141921,0.002,3836.1,3834.9,2.60762992]
[1760717142120,0.002,3836.1,3835.0,0.26337069]
[1760717142554,2.6088234,3836.1,3834.4,3.07145144]
[1760717142738,0.002,3836.1,3834.6,2.60780363]
[1760717142937,0.002,3836.1,3834.4,0.4635]
[1760717143262,2.60729194,3835.4,3834.2,0.1614]
[1760717143557,2.60729194,3835.4,3833.5,2.60857196]
[1760717143558,0.2183,3835.3,3833.6,0.2189]
[1760717143760,0.2183,3835.3,3832.7,0.4635]
[1760717143761,0.6493,3835.3,3832.7,0.4635]
[1760717143920,0.6336,3835.2,3832.0,0.2189]
[1760717144125,0.6336,3834.8,3832.0,0.2189]
[1760717144331,0.6336,3834.7,3832.0,0.2189]
[1760717144563,0.97342495,3834.6,3832.0,0.2189]
[1760717144748,2.60854579,3833.6,3832.0,0.2189]
[1760717144951,0.1304,3833.6,3833.0,0.1304]
[1760717145261,0.1304,3833.6,3831.9,0.001]
[1760717145262,0.431,3833.5,3831.9,0.001]
[1760717145468,0.431,3833.5,3832.1,0.1304]
[1760717145469,0.1304,3832.7,3832.1,0.1304]
[1760717145766,2.60933096,3832.4,3832.1,0.1304]
[1760717145964,3.04033096,3832.4,3831.9,0.001]
[1760717146130,0.431,3832.4,3831.9,0.001]
[1760717146329,3.44955984,3832.4,3831.9,0.001]
[1760717147431,4.07726698,3832.4,3831.9,0.001]
[1760717147632,0.40922888,3832.4,3831.9,0.001]
[1760717147845,3.01855984,3832.4,3831.9,0.001]
[1760717148042,0.40922888,3832.4,3831.9,0.001]
[1760717148632,0.40922888,3832.4,3832.3,0.14910943]
[1760717149471,0.40922888,3832.4,3832.3,0.01870943]
[1760717150048,1.9463,3834.1,3832.3,0.48220943]
[1760717150049,0.04547319,3833.6,3832.3,0.48220943]
[1760717150365,0.40918941,3832.9,3832.3,0.01870943]
[1760717150742,0.431,3833.3,3832.3,0.01870943]
[1760717150945,0.40920837,3832.8,3832.3,0.01870943]
[1760717151675,3.45567812,3832.8,3832.3,0.01870943]
[1760717151875,2.60924456,3832.6,3832.3,0.01870943]
[1760717152053,2.60925224,3832.6,3832.3,0.01870943]
[1760717152255,3.01827977,3832.8,3832.3,0.01870943]
[1760717152440,0.40920837,3832.8,3832.3,0.01870943]
[1760717152641,2.60917619,3832.7,3832.3,0.01870943]
[1760717152887,0.4374,3832.7,3832.3,0.01870943]
[1760717153078,0.4374,3832.6,3832.3,0.01870943]
[1760717153389,0.40920837,3832.8,3832.3,0.01870943]
[1760717154256,0.4374,3834.4,3832.4,0.4541]
[1760717154580,0.40918767,3833.5,3832.4,0.4541]
[1760717156472,0.40918767,3833.5,3832.3,0.01870943]
[1760717156854,2.60886226,3833.1,3832.3,0.01870943]
[1760717157047,0.40918767,3833.5,3832.3,0.01870943]
[1760717157281,0.4374,3833.6,3832.3,0.01870943]
[1760717157493,0.40915374,3833.3,3832.3,0.01870943]
[1760717158001,3.01788865,3833.3,3832.3,0.01870943]
[1760717158182,2.6088206,3833.2,3832.3,0.01870943]
[1760717158503,0.40915374,3833.3,3832.3,0.01870943]
[1760717158795,2.6091839,3832.7,3832.3,0.01870943]
[1760717158949,2.60933096,3832.4,3832.3,0.01870943]
[1760717159511,3.14895632,3832.4,3832.3,0.01870943]
[1760717159818,3.58635632,3832.4,3832.3,0.01870943]
[1760717160112,3.45595632,3832.4,3832.3,0.01870943]
[1760717160681,2.60960334,3832.0,3831.9,0.001]
[1760717160867,1.728,3831.8,3829.5,0.4541]
[1760717161066,9.428798,3831.7,3829.4,0.8125]
[1760717161319,13.56164742,3831.9,3829.4,0.8125]
[1760717161320,2.61096605,3830.0,3829.4,0.8125]
[1760717161789,2.61085716,3830.2,3829.4,0.8125]
[1760717161964,0.4332,3830.7,3829.4,0.8125]
[1760717162600,0.2205,3831.6,3829.6,2.61123877]
[1760717162766,12.89644742,3832.6,3829.8,7.137296]
[1760717162767,0.40945099,3831.1,3829.8,7.137296]
[1760717162969,0.40945099,3831.1,3829.7,3.4851]
[1760717162970,0.04549477,3832.7,3831.0,0.1145]
[1760717163168,0.40932855,3832.4,3831.1,0.48020216]
[1760717163497,0.40932855,3832.4,3831.1,3.06430199]
[1760717164001,0.04548007,3833.5,3831.2,3.59865]
[1760717164300,0.40920848,3833.3,3832.4,2.02146]
[1760717164486,2.60769792,3834.8,3833.2,0.1689]
[1760717164689,0.2226,3835.0,3833.2,0.1689]
[1760717164999,0.40898364,3834.5,3832.6,3.029]
[1760717165198,0.40898364,3834.5,3832.7,0.34831]
[1760717165413,3.01689039,3834.5,3832.5,0.4541]
[1760717165607,0.40898364,3834.5,3832.6,7.48394794]
[1760717165787,0.40898364,3834.5,3832.8,12.747197]
[1760717165986,0.659,3836.0,3832.5,1.728]
[1760717165987,3.26593972,3836.0,3833.2,1.728]
[1760717166167,3.26593972,3836.0,3833.0,0.1689]
[1760717166168,0.40898326,3835.0,3833.6,2.60848794]
[1760717166369,0.40898326,3835.0,3833.7,0.74103325]
[1760717166596,0.2348,3836.0,3833.7,0.28693325]
[1760717166808,0.2348,3836.4,3833.8,0.4541]
[1760717166809,0.40894104,3835.8,3833.8,0.4541]
[1760717167008,0.4262,3836.5,3834.3,1.728]
[1760717167009,0.002,3836.5,3834.3,1.728]
[1760717167196,0.002,3836.5,3834.6,1.728]
[1760717167397,0.40886487,3836.4,3834.8,2.239426]
[1760717167601,0.002,3836.5,3836.0,0.1689]
[1760717167797,0.002,3836.5,3836.0,5.129146]
[1760717167995,0.002,3836.5,3836.0,0.6297]
[1760717168204,0.002,3836.5,3836.1,0.4608]
[1760717168407,0.002,3836.5,3836.1,0.7844566]
[1760717168622,0.002,3836.5,3836.0,0.1689]
[1760717168820,0.002,3836.5,3835.2,2.1888]
[1760717169124,0.002,3836.5,3836.4,0.1689]
[1760717169912,0.002,3836.5,3836.4,0.6297]
[1760717171104,0.002,3836.5,3836.4,4.99037646]
[1760717171296,0.002,3836.5,3836.4,3.42011203]
[1760717171626,0.002,3836.5,3836.4,21.48483546]
[1760717171833,0.002,3836.5,3836.4,8.62091036]
[1760717171997,0.002,3836.5,3836.4,2.3577]
[1760717172199,0.002,3836.5,3836.4,9.595826]
[1760717172404,0.002,3836.5,3836.4,5.3787]
[1760717172741,0.002,3836.5,3836.4,1.16757]
[1760717172910,0.002,3836.5,3836.4,3.6487]
[1760717173234,0.002,3836.5,3835.6,0.4608]
[1760717173433,0.002,3836.5,3836.1,0.6297]
[1760717173600,0.002,3836.5,3836.2,4.833]
[1760717173941,0.002,3836.5,3836.3,4.064392]
[1760717174137,0.002,3836.5,3836.4,26.22579656]
[1760717174432,0.40866381,3838.2,3836.4,26.22579656]
[1760717174433,0.40866381,3838.2,3836.8,5.018]
[1760717174633,0.40866381,3838.2,3837.0,5.374572]
[1760717174944,2.60449952,3839.6,3837.3,1.728]
[1760717174945,0.2239,3839.5,3837.3,1.728]
[1760717175234,0.40857134,3839.7,3838.2,0.6336]
[1760717175401,0.40857134,3839.7,3838.3,3.015]
[1760717175602,0.40857134,3839.7,3838.5,2.60518431]
[1760717175803,0.40857134,3839.7,3838.5,14.592411]
[1760717176003,0.40857134,3839.7,3838.4,0.88639]
[1760717176004,0.38826252,3839.7,3839.6,18.48373096]
[1760717176252,0.4613,3841.9,3840.0,1.728]
[1760717176401,0.40834975,3841.8,3840.3,1.728]
[1760717176603,0.40834975,3841.8,3840.5,5.63178]
[1760717176839,0.40834975,3841.8,3840.5,0.4608]
[1760717177051,0.2239,3843.0,3840.9,1.728]
[1760717177217,0.4081972,3842.8,3841.0,2.2755]
[1760717177539,0.6320972,3842.8,3841.1,1.728]
[1760717177841,0.4081972,3842.8,3841.2,3.014]
[1760717178004,0.4081972,3842.8,3841.4,13.878939]
[1760717178206,0.4081972,3842.8,3841.3,1.75403285]
[1760717178207,0.4081972,3842.8,3842.1,0.1577]
[1760717178524,0.003,3843.2,3842.1,0.1577]
[1760717178733,0.003,3843.2,3842.1,12.83267529]
[1760717179050,0.003,3843.2,3842.1,25.55866929]
[1760717179206,0.003,3843.2,3842.1,17.71216482]
[1760717179407,0.003,3843.2,3842.1,2.687316]
[1760717179743,0.003,3843.2,3841.4,0.6185]
[1760717179953,0.003,3843.2,3842.1,0.1296]
[1760717180255,0.003,3843.2,3842.1,0.1577]
[1760717180748,0.003,3843.2,3842.1,0.64452743]
[1760717180909,0.003,3843.2,3842.1,2.87006746]
[1760717181101,0.003,3843.2,3842.1,1.8857]
[1760717181450,0.2239,3842.8,3840.5,0.4608]
[1760717181608,2.82622994,3842.8,3841.6,3.006]
[1760717181802,2.82622994,3842.8,3841.7,0.02603014]
[1760717181803,0.2239,3842.8,3841.7,0.02603014]
[1760717182010,0.40815452,3842.7,3841.6,3.006]
[1760717182326,0.40815452,3842.7,3841.7,3.005]
[1760717182529,0.4659,3842.6,3840.4,0.4388]
[1760717182741,0.4659,3842.1,3840.5,2.315]
[1760717183049,2.60287878,3841.9,3838.9,3.04369989]
[1760717183208,2.60382757,3840.6,3839.1,3.33890999]
[1760717183411,0.4684,3840.5,3838.4,0.1577]
[1760717183629,3.23342216,3841.8,3838.6,11.1295]
[1760717183630,0.4684,3841.3,3838.6,11.1295]
[1760717183816,0.4684,3841.3,3838.4,3.1617]
[1760717183817,0.2222,3841.0,3838.8,13.899043]
[1760717184119,0.63047499,3841.8,3838.4,3.1617]
[1760717184120,0.2222,3841.5,3839.6,1.728]
[1760717184442,0.4684,3841.4,3839.6,4.0467768]
[1760717184640,0.40831133,3841.1,3839.6,3.004]
[1760717184829,0.4684,3841.0,3839.6,3.004]
[1760717185003,0.4684,3841.0,3839.5,3.008]
[1760717185406,0.4684,3840.9,3839.5,3.008]
[1760717185611,2.60395217,3840.4,3838.8,3.006]
[1760717185810,2.60340212,3841.2,3838.8,3.56710332]
[1760717185811,0.4684,3840.3,3838.8,3.56710332]